bitfinex/quotes_BTCUSD_20250714
["timestamp","ask_amount","ask_price","bid_price","bid_amount"]
[1752490178218,0.56721819,121910.0,121900.0,0.00215324]
[1752490178527,0.80933182,121910.0,121900.0,0.00215324]
[1752490178982,0.56721819,121910.0,121900.0,0.00215324]
[1752490179194,0.77913182,121910.0,121900.0,0.00215324]
[1752490181554,0.53701819,121910.0,121900.0,0.00215324]
[1752490181754,0.77913182,121910.0,121900.0,0.00215324]
[1752490183644,0.53701819,121910.0,121900.0,0.00420324]
[1752490183848,0.77913182,121910.0,121900.0,0.03360324]
[1752490185194,0.77605182,121910.0,121900.0,0.06602324]
[1752490185399,0.69261471,121910.0,121900.0,0.06602324]
[1752490187283,0.45050108,121910.0,121900.0,0.06602324]
[1752490187491,0.69261471,121910.0,121900.0,0.06602324]
[1752490188122,0.45259108,121910.0,121900.0,0.06602324]
[1752490188543,0.69470471,121910.0,121900.0,0.06602324]
[1752490188993,0.69470471,121910.0,121900.0,0.06280324]
[1752490190512,0.69470471,121910.0,121900.0,0.03360324]
[1752490190718,0.69778471,121910.0,121900.0,0.03360324]
[1752490190934,0.45567108,121910.0,121900.0,0.00215324]
[1752490191169,0.69778471,121910.0,121900.0,0.00215324]
[1752490195879,1.08314545,121910.0,121900.0,0.00215324]
[1752490196327,0.84103182,121910.0,121900.0,0.00215324]
[1752490196553,0.72987819,121910.0,121900.0,0.00215324]
[1752490196765,0.84103182,121910.0,121900.0,0.00215324]
[1752490197026,0.97199182,121910.0,121900.0,0.00215324]
[1752490197233,0.72987819,121910.0,121900.0,0.00215324]
[1752490197462,0.97199182,121910.0,121900.0,0.00215324]
[1752490197674,1.08314545,121910.0,121900.0,0.00215324]
[1752490197945,1.21406545,121910.0,121900.0,0.00215324]
[1752490199509,1.47500573,121910.0,121900.0,1e-08]
[1752490199734,1.79617908,121910.0,121900.0,1e-08]
[1752490200180,1.55406545,121910.0,121900.0,1e-08]
[1752490200880,1.42514545,121910.0,121900.0,1e-08]
[1752490201120,1.09512671,121910.0,121900.0,1e-08]
[1752490201343,1.44843397,121910.0,121900.0,1e-08]
[1752490201569,1.31485397,121910.0,121900.0,1e-08]
[1752490201751,1.18393397,121910.0,121900.0,1e-08]
[1752490202017,1.31481397,121910.0,121900.0,1e-08]
[1752490203150,1.18393397,121910.0,121900.0,1e-08]
[1752490203397,1.71481397,121910.0,121900.0,1e-08]
[1752490205134,1.4226913,121910.0,121900.0,1e-08]
[1752490205565,1.5535713,121910.0,121900.0,1e-08]
[1752490205996,1.4226913,121910.0,121900.0,1e-08]
[1752490206215,1.09970671,121910.0,121900.0,1e-08]
[1752490206430,1.5535313,121910.0,121900.0,1e-08]
[1752490206911,1.0971049,121910.0,121900.0,1e-08]
[1752490207179,1.1535313,121910.0,121900.0,1e-08]
[1752490207842,1.0226913,121910.0,121900.0,1e-08]
[1752490208054,1.1535313,121910.0,121900.0,1e-08]
[1752490210807,1.15344842,121910.0,121900.0,1e-08]
[1752490211034,1.15340842,121910.0,121900.0,1e-08]
[1752490215327,1.02260842,121910.0,121900.0,1e-08]
[1752490215545,0.76852383,121910.0,121900.0,1e-08]
[1752490215979,0.96070842,121910.0,121900.0,1e-08]
[1752490216192,1.09146842,121910.0,121900.0,1e-08]
[1752490217295,1.15326842,121910.0,121900.0,1e-08]
[1752490217531,1.02250842,121910.0,121900.0,1e-08]
[1752490217760,1.15326842,121910.0,121900.0,1e-08]
[1752490219329,1.02250842,121910.0,121900.0,1e-08]
[1752490219564,1.15322842,121910.0,121900.0,1e-08]
[1752490220008,1.03704927,121910.0,121900.0,1e-08]
[1752490220229,1.16776927,121910.0,121900.0,1e-08]
[1752490223097,1.03704927,121910.0,121900.0,1e-08]
[1752490223314,1.16772927,121910.0,121900.0,1e-08]
[1752490223744,1.03704927,121910.0,121900.0,1e-08]
[1752490224081,1.16772927,121910.0,121900.0,1e-08]
[1752490224901,0.84474468,121910.0,121900.0,1e-08]
[1752490225088,1.16772927,121910.0,121900.0,1e-08]
[1752490227459,1.03704927,121910.0,121900.0,1e-08]
[1752490227701,1.16768927,121910.0,121900.0,1e-08]
[1752490228129,1.03704927,121910.0,121900.0,1e-08]
[1752490228351,1.16768927,121910.0,121900.0,1e-08]
[1752490228804,1.03704927,121910.0,121900.0,1e-08]
[1752490228987,1.16768927,121910.0,121900.0,1e-08]
[1752490229919,0.84470468,121910.0,121900.0,1e-08]
[1752490230151,1.16768927,121910.0,121900.0,1e-08]
[1752490231067,0.96070842,121910.0,121900.0,0.00212001]
[1752490231289,1.09130842,121910.0,121900.0,0.00212001]
[1752490231718,0.76832383,121910.0,121900.0,0.00212001]
[1752490231926,1.09130842,121910.0,121900.0,0.00212001]
[1752490233068,0.96070842,121910.0,121900.0,0.00212001]
[1752490233282,1.09130842,121910.0,121900.0,0.00212001]
[1752490234809,1.09130842,121910.0,121900.0,1e-08]
[1752490236851,0.96070842,121910.0,121900.0,1e-08]
[1752490237147,1.09126842,121910.0,121900.0,1e-08]
[1752490239169,1.09122842,121910.0,121900.0,1e-08]
[1752490239383,0.99140842,121910.0,121900.0,1e-08]
[1752490239618,1.09122842,121910.0,121900.0,1e-08]
[1752490240085,0.99230842,121910.0,121900.0,1e-08]
[1752490240357,1.15472842,121910.0,121900.0,1e-08]
[1752490241183,1.02420842,121910.0,121900.0,1e-08]
[1752490241401,1.15472842,121910.0,121900.0,1e-08]
[1752490243256,0.99230842,121910.0,121900.0,1e-08]
[1752490243675,1.12278842,121910.0,121900.0,1e-08]
[1752490244097,0.99230842,121910.0,121900.0,1e-08]
[1752490244329,1.12278842,121910.0,121900.0,1e-08]
[1752490247211,1.12274842,121910.0,121900.0,1e-08]
[1752490247436,0.99230842,121910.0,121900.0,1e-08]
[1752490247662,1.12274842,121910.0,121900.0,1e-08]
[1752490251150,1.09110842,121910.0,121900.0,1e-08]
[1752490252236,0.99150842,121910.0,121900.0,1e-08]
[1752490252638,1.12190842,121910.0,121900.0,1e-08]
[1752490254236,1.12190842,121910.0,121880.0,1e-08]
[1752490254237,0.58279012,121890.0,121880.0,1e-08]
[1752490254465,1.31208641,121890.0,121880.0,1e-08]
[1752490254688,0.79972723,121890.0,121880.0,1e-08]
[1752490255068,1.08176808,121890.0,121880.0,1e-08]
[1752490255662,1.08726808,121890.0,121880.0,1e-08]
[1752490256274,0.81976808,121890.0,121880.0,1e-08]
[1752490256477,0.82276808,121890.0,121880.0,1e-08]
[1752490256687,0.82776808,121890.0,121880.0,1e-08]
[1752490256903,0.69740808,121890.0,121880.0,1e-08]
[1752490257114,0.82776808,121890.0,121880.0,1e-08]
[1752490257323,0.82226808,121890.0,121880.0,1e-08]
[1752490260549,0.69190808,121890.0,121880.0,1e-08]
[1752490260772,0.82222808,121890.0,121880.0,1e-08]
[1752490262848,0.82218808,121890.0,121880.0,1e-08]
[1752490264681,0.69190808,121890.0,121880.0,1e-08]
[1752490264905,0.82218808,121890.0,121880.0,1e-08]
[1752490266894,0.77322542,121890.0,121880.0,1e-08]
[1752490267109,0.90346542,121890.0,121880.0,1e-08]
[1752490267321,0.84675308,121890.0,121880.0,1e-08]
[1752490271028,0.84671308,121890.0,121880.0,1e-08]
[1752490273590,0.71651308,121890.0,121880.0,1e-08]
[1752490273792,0.84671308,121890.0,121880.0,1e-08]
[1752490273979,0.18051974,121870.0,121860.0,0.0686]
[1752490274215,0.39206685,121870.0,121860.0,0.07082362]
[1752490274808,0.71505144,121870.0,121860.0,0.07082362]
[1752490275422,0.71605144,121870.0,121860.0,0.07082362]
[1752490276942,1.11605144,121870.0,121860.0,0.07082362]
[1752490279044,1.27767853,121870.0,121860.0,0.07082362]
[1752490279865,1.14747853,121870.0,121860.0,0.07082362]
[1752490280075,1.03533269,121870.0,121860.0,0.07082362]
[1752490281109,1.27763853,121870.0,121860.0,0.07082362]
[1752490281674,1.03533269,121870.0,121860.0,0.07082362]
[1752490283201,1.03525269,121870.0,121860.0,0.07082362]
[1752490283626,1.27755853,121870.0,121860.0,0.07082362]
[1752490285377,0.66286685,121870.0,121860.0,0.06892362]
[1752490285614,0.26286685,121870.0,121860.0,0.06892362]
[1752490285845,0.18151974,121870.0,121860.0,0.31122946]
[1752490286339,0.18151974,121870.0,121860.0,0.06892362]
[1752490286808,0.18151974,121870.0,121860.0,0.31122946]
[1752490287038,0.18151974,121870.0,121860.0,0.39182327]
[1752490287269,0.18151974,121870.0,121860.0,0.06892362]
[1752490295355,0.18151974,121870.0,121860.0,0.19892362]
[1752490298730,0.18151974,121870.0,121860.0,0.19888362]
[1752490301273,0.18151974,121870.0,121860.0,0.06892362]
[1752490301492,0.18151974,121870.0,121860.0,0.19888362]
[1752490301701,0.18151974,121870.0,121860.0,0.06892362]
[1752490301900,0.50441939,121870.0,121860.0,0.06892362]
[1752490302105,0.50441939,121870.0,121860.0,0.19884362]
[1752490303147,0.18151974,121870.0,121860.0,0.19884362]
[1752490303853,0.50441939,121870.0,121860.0,0.19884362]
[1752490305782,0.18151974,121870.0,121860.0,0.19884362]
[1752490305996,0.50441939,121870.0,121860.0,0.19884362]
[1752490306603,0.50441939,121870.0,121860.0,0.19880362]
[1752490307823,0.50441939,121870.0,121860.0,0.06892362]
[1752490308047,0.56979939,121870.0,121860.0,0.00248362]
[1752490308246,1.1210265,121870.0,121860.0,0.00248362]
[1752490309277,0.9911465,121870.0,121860.0,0.02594762]
[1752490309486,1.1209865,121870.0,121860.0,0.02594762]
[1752490311034,0.9911465,121870.0,121860.0,0.02594762]
[1752490311255,1.1209865,121870.0,121860.0,0.02594762]
[1752490312152,1.5209865,121870.0,121860.0,0.02594762]
[1752490313754,1.3911465,121870.0,121860.0,0.02594762]
[1752490313990,1.5209865,121870.0,121860.0,0.02594762]
[1752490318204,1.5209465,121870.0,121860.0,0.02594762]
[1752490321238,1.5209065,121870.0,121860.0,0.02594762]
[1752490322680,1.4555265,121870.0,121860.0,0.06214762]
[1752490322933,0.60286685,121870.0,121860.0,0.09454762]
[1752490323851,0.9257665,121870.0,121860.0,0.09454762]
[1752490330891,0.9257665,121870.0,121860.0,0.03114762]
[1752490331557,0.9257665,121870.0,121860.0,0.06304762]
[1752490332753,0.60286685,121870.0,121860.0,0.06304762]
[1752490332978,0.9257665,121870.0,121860.0,0.06304762]
[1752490334581,0.9257665,121870.0,121860.0,0.03114762]
[1752490335717,0.9278865,121870.0,121860.0,0.03114762]
[1752490335945,0.9278865,121870.0,121860.0,0.02799762]
[1752490337162,0.9310865,121870.0,121860.0,0.02799762]
[1752490337617,1.0607265,121870.0,121860.0,0.02799762]
[1752490340029,1.0805265,121870.0,121860.0,0.02594762]
[1752490341018,1.24223501,121870.0,121860.0,0.02594762]
[1752490343172,0.75762685,121870.0,121860.0,0.02594762]
[1752490343382,1.24223501,121870.0,121860.0,0.02594762]
[1752490344976,1.27353501,121870.0,121860.0,0.02594762]
[1752490346350,1.24223501,121870.0,121860.0,0.02594762]
[1752490348517,1.1776727,121870.0,121860.0,0.02594762]
[1752490348740,1.3395327,121870.0,121860.0,0.02594762]
[1752490348968,1.3394927,121870.0,121860.0,0.02594762]
[1752490350699,1.14489501,121870.0,121860.0,0.02594762]
[1752490350915,1.27441501,121870.0,121860.0,0.02594762]
[1752490351582,1.14489501,121870.0,121860.0,0.02594762]
[1752490351800,1.27441501,121870.0,121860.0,0.02594762]
[1752490353134,1.11289121,121870.0,121860.0,0.02594762]
[1752490354230,0.52151974,121870.0,121860.0,0.03105762]
[1752490354457,0.9740841,121870.0,121860.0,0.06165762]
[1752490355125,0.8446041,121870.0,121860.0,0.03105762]
[1752490356003,0.8467541,121870.0,121860.0,0.03105762]
[1752490356219,0.52366974,121870.0,121860.0,0.03105762]
[1752490356423,0.8467541,121870.0,121860.0,0.03105762]
[1752490357172,0.9762341,121870.0,121860.0,0.03105762]
[1752490357403,0.8467541,121870.0,121860.0,0.03105762]
[1752490357604,0.9762341,121870.0,121860.0,0.03105762]
[1752490359723,0.8467541,121870.0,121860.0,0.03105762]
[1752490361244,0.8467541,121870.0,121860.0,0.02797762]
[1752490363035,0.8677541,121870.0,121860.0,0.02797762]
[1752490363265,0.8708541,121870.0,121860.0,0.02797762]
[1752490363477,0.8906541,121870.0,121860.0,0.02594762]
[1752490368576,0.56756974,121870.0,121860.0,0.02594762]
[1752490368789,0.8906541,121870.0,121860.0,0.02594762]
[1752490369833,1.0200141,121870.0,121860.0,0.02594762]
[1752490370895,0.8906541,121870.0,121860.0,0.02594762]
[1752490371116,1.0200141,121870.0,121860.0,0.02594762]
[1752490372650,1.0002141,121870.0,121860.0,0.02797762]
[1752490373110,0.9792141,121870.0,121860.0,0.02797762]
[1752490373311,0.9761141,121870.0,121860.0,0.02797762]
[1752490375063,1.13762684,121870.0,121860.0,0.02797762]
[1752490375477,1.13762684,121870.0,121860.0,0.02594762]
[1752490375478,1.14072684,121870.0,121860.0,0.02594762]
[1752490375657,1.16122684,121870.0,121860.0,0.02594762]
[1752490375859,1.18108684,121870.0,121860.0,0.02594762]
[1752490377797,1.18108684,121870.0,121860.0,0.02533762]
[1752490378215,0.69648974,121870.0,121860.0,0.02533762]
[1752490378428,1.18108684,121870.0,121860.0,0.02533762]
[1752490379622,0.80946829,121870.0,121860.0,0.02533762]
[1752490379840,1.18104684,121870.0,121860.0,0.02533762]
[1752490383294,0.69644974,121870.0,121860.0,0.02533762]
[1752490383506,1.18104684,121870.0,121860.0,0.02533762]
[1752490383720,0.69644974,121870.0,121860.0,0.02533762]
[1752490383935,1.18104684,121870.0,121860.0,0.02533762]
[1752490384813,1.16114684,121870.0,121860.0,0.02533762]
[1752490385541,0.89524829,121870.0,121860.0,0.03045762]
[1752490388153,0.89524829,121870.0,121860.0,0.02746762]
[1752490388600,0.76596829,121870.0,121860.0,0.02746762]
[1752490388819,0.89520829,121870.0,121860.0,0.02746762]
[1752490390030,0.89516829,121870.0,121860.0,0.02746762]
[1752490391447,0.76596829,121870.0,121860.0,0.02746762]
[1752490391662,0.89516829,121870.0,121860.0,0.02746762]
[1752490394826,1.18043684,121870.0,121860.0,0.02533762]
[1752490396330,1.26178395,121870.0,121860.0,0.02533762]
[1752490396542,0.77718685,121870.0,121860.0,0.02533762]
[1752490396767,1.26178395,121870.0,121860.0,0.02533762]
[1752490399696,1.52928395,121870.0,121860.0,0.02533762]
[1752490400732,1.26178395,121870.0,121860.0,0.02533762]
[1752490402652,1.26170395,121870.0,121860.0,0.02533762]
[1752490405461,1.13258395,121870.0,121860.0,0.02533762]
[1752490405687,1.26166395,121870.0,121860.0,0.02533762]
[1752490407909,1.13258395,121870.0,121860.0,0.02533762]
[1752490408098,1.26166395,121870.0,121860.0,0.02533762]
[1752490408518,1.13258395,121870.0,121860.0,0.02533762]
[1752490408727,1.26166395,121870.0,121860.0,0.02533762]
[1752490409192,1.13258395,121870.0,121860.0,0.02533762]
[1752490409405,1.26166395,121870.0,121860.0,0.02533762]
[1752490410027,1.13258395,121870.0,121860.0,0.02533762]
[1752490410235,1.26166395,121870.0,121860.0,0.02533762]
[1752490411942,1.26162395,121870.0,121860.0,0.02533762]
[1752490412166,1.13258395,121870.0,121860.0,0.02533762]
[1752490412375,1.26162395,121870.0,121860.0,0.02533762]
[1752490414721,0.77702685,121870.0,121860.0,0.02533762]
[1752490414933,1.13258395,121870.0,121860.0,0.02533762]
[1752490415136,1.26162395,121870.0,121860.0,0.02533762]
[1752490415957,1.13258395,121870.0,121860.0,0.02533762]
[1752490416161,1.26158395,121870.0,121860.0,0.02533762]
[1752490419043,0.92158395,121870.0,121860.0,0.02533762]
[1752490421413,0.92154395,121870.0,121860.0,0.02533762]
[1752490424926,0.79258395,121870.0,121860.0,0.02533762]
[1752490425157,0.92154395,121870.0,121860.0,0.02533762]
[1752490428963,0.43694685,121870.0,121860.0,0.02533762]
[1752490429158,0.92154395,121870.0,121860.0,0.02533762]
[1752490431879,0.77694685,121870.0,121860.0,0.02533762]
[1752490432076,1.26154395,121870.0,121860.0,0.02533762]
[1752490433068,0.77694685,121870.0,121860.0,0.02533762]
[1752490433270,1.26154395,121870.0,121860.0,0.02533762]
[1752490441817,1.26142395,121870.0,121860.0,0.02533762]
[1752490442459,1.26138395,121870.0,121860.0,0.02533762]
[1752490443139,1.13258395,121870.0,121860.0,0.02533762]
[1752490443325,1.26138395,121870.0,121860.0,0.02533762]
[1752490445758,1.13258395,121870.0,121860.0,0.02533762]
[1752490445964,1.26138395,121870.0,121860.0,0.02533762]
[1752490446211,1.13258395,121870.0,121860.0,0.02533762]
[1752490446427,1.26138395,121870.0,121860.0,0.02533762]
[1752490449136,1.13258395,121870.0,121860.0,0.02533762]
[1752490449371,0.77674685,121870.0,121860.0,0.02533762]
[1752490449580,1.26134395,121870.0,121860.0,0.02533762]
[1752490450270,1.13258395,121870.0,121860.0,0.02533762]
[1752490450516,1.26134395,121870.0,121860.0,0.02533762]
[1752490455818,1.13258395,121870.0,121860.0,0.02533762]
[1752490456030,1.26130395,121870.0,121860.0,0.02533762]
[1752490458981,1.26126395,121870.0,121860.0,0.02533762]
[1752490465174,0.60286685,121870.0,121860.0,0.05153762]
[1752490465398,0.9738054,121870.0,121860.0,0.07123762]
[1752490468988,0.73150685,121870.0,121860.0,0.07123762]
[1752490469215,0.60286685,121870.0,121860.0,0.07123762]
[1752490469426,0.9738054,121870.0,121860.0,0.07123762]
[1752490470150,0.8451654,121870.0,121860.0,0.03053762]
[1752490470375,0.9737654,121870.0,121860.0,0.03053762]
[1752490470603,0.73146685,121870.0,121860.0,0.03053762]
[1752490470827,1.21606395,121870.0,121860.0,0.03053762]
[1752490471307,0.73146685,121870.0,121860.0,0.03053762]
[1752490471524,1.21812395,121870.0,121860.0,0.03053762]
[1752490472399,0.9758254,121870.0,121860.0,0.03053762]
[1752490472611,1.21812395,121870.0,121860.0,0.02743762]
[1752490474573,0.73352685,121870.0,121860.0,0.02743762]
[1752490474797,1.21812395,121870.0,121860.0,0.02743762]
[1752490477491,1.21808395,121870.0,121860.0,0.02743762]
[1752490478724,1.22124395,121870.0,121860.0,0.02743762]
[1752490482565,0.80172454,121870.0,121860.0,0.02743762]
[1752490482883,0.73664685,121870.0,121860.0,0.02743762]
[1752490483092,1.22124395,121870.0,121860.0,0.02743762]
[1752490484325,0.73664685,121870.0,121860.0,0.02743762]
[1752490484535,1.22124395,121870.0,121860.0,0.02743762]
[1752490484732,1.09268395,121870.0,121860.0,0.02743762]
[1752490485171,1.22120395,121870.0,121860.0,0.02743762]
[1752490486012,1.09268395,121870.0,121860.0,0.02743762]
[1752490486255,1.22120395,121870.0,121860.0,0.02743762]
[1752490486445,1.21804395,121870.0,121860.0,0.02743762]
[1752490487605,0.8472254,121870.0,121860.0,0.02743762]
[1752490487814,0.89233829,121870.0,121860.0,0.03062762]
[1752490488043,0.89233829,121870.0,121860.0,0.07042762]
[1752490488274,0.76381829,121870.0,121860.0,0.07042762]
[1752490488483,0.89229829,121870.0,121860.0,0.07042762]
[1752490489390,0.64999974,121870.0,121860.0,0.07042762]
[1752490489598,0.89229829,121870.0,121860.0,0.07042762]
[1752490490475,0.89229829,121870.0,121860.0,0.05022762]
[1752490490896,0.89229829,121870.0,121860.0,0.03062762]
[1752490493846,1.13459684,121870.0,121860.0,0.03062762]
[1752490495525,1.13665684,121870.0,121860.0,0.03062762]
[1752490500419,0.89229829,121870.0,121860.0,0.03062762]
[1752490500841,1.13459684,121870.0,121860.0,0.03062762]
[1752490503550,1.13673684,121870.0,121860.0,0.03062762]
[1752490505852,1.00825684,121870.0,121860.0,0.03062762]
[1752490506074,1.13661684,121870.0,121860.0,0.03062762]
[1752490507087,1.13661684,121870.0,121860.0,0.02743762]
[1752490508795,1.13661684,121870.0,121860.0,0.03043762]
[1752490509274,1.13661684,121870.0,121860.0,0.02743762]
[1752490509900,0.65201974,121870.0,121860.0,0.02743762]
[1752490510101,0.89431829,121870.0,121860.0,0.03043762]
[1752490510518,1.13661684,121870.0,121860.0,0.03043762]
[1752490510726,1.13661684,121870.0,121860.0,0.02743762]
[1752490511492,0.65201974,121870.0,121860.0,0.02743762]
[1752490511920,0.89431829,121870.0,121860.0,0.02743762]
[1752490512159,0.76381829,121870.0,121860.0,0.03043762]
[1752490512350,0.18151974,121870.0,121860.0,0.07273762]
[1752490512828,0.42381829,121870.0,121860.0,0.07273762]
[1752490513477,0.42381829,121870.0,121860.0,0.20105762]
[1752490515085,0.18151974,121870.0,121860.0,0.20105762]
[1752490515297,0.42381829,121870.0,121860.0,0.20105762]
[1752490515532,0.18151974,121870.0,121860.0,0.20105762]
[1752490515953,0.42381829,121870.0,121860.0,0.20105762]
[1752490516849,0.18151974,121870.0,121860.0,0.20105762]
[1752490517062,0.42381829,121870.0,121860.0,0.20105762]
[1752490524399,0.18151974,121870.0,121860.0,0.20105762]
[1752490524618,0.42381829,121870.0,121860.0,0.20097762]
[1752490525284,0.18151974,121870.0,121860.0,0.20097762]
[1752490525494,0.42381829,121870.0,121860.0,0.20097762]
[1752490525721,0.42381829,121870.0,121860.0,0.07273762]
[1752490525932,0.18151974,121870.0,121860.0,0.20302915]
[1752490526156,0.42381829,121870.0,121860.0,0.20097762]
[1752490528437,0.18151974,121870.0,121860.0,0.20097762]
[1752490528656,0.17232876,121860.0,121850.0,0.0004]
[1752490528902,0.17232876,121860.0,121850.0,0.1307028]
[1752490529127,0.17232876,121860.0,121850.0,0.1307911]
[1752490529348,0.41462731,121860.0,121850.0,0.1307911]
[1752490529970,0.41462731,121860.0,121850.0,0.1317911]
[1752490530650,0.41462731,121860.0,121850.0,0.1335711]
[1752490531053,0.41462731,121860.0,121850.0,0.0053711]
[1752490531263,0.41462731,121860.0,121850.0,0.1335311]
[1752490531473,0.65692586,121860.0,121850.0,0.1317511]
[1752490531679,0.17232876,121860.0,121850.0,0.1317511]
[1752490531935,0.41462731,121860.0,121850.0,0.1317511]
[1752490532346,0.17232876,121860.0,121850.0,0.1317511]
[1752490532558,0.41462731,121860.0,121850.0,0.1317511]
[1752490534510,0.65692586,121860.0,121850.0,0.1317511]
[1752490536005,0.17232876,121860.0,121850.0,0.1317511]
[1752490536214,0.65692586,121860.0,121850.0,0.1317511]
[1752490537390,0.17232876,121860.0,121850.0,0.1317511]
[1752490537604,0.65692586,121860.0,121850.0,0.1317511]
[1752490539460,0.94493441,121860.0,121850.0,0.0014511]
[1752490539763,1.15440152,121860.0,121850.0,0.0014511]
[1752490540000,0.78398297,121860.0,121850.0,0.0014511]
[1752490540184,0.83075586,121860.0,121850.0,0.0014511]
[1752490540864,0.70263586,121860.0,121850.0,0.0014511]
[1752490541118,0.83075586,121860.0,121850.0,0.0014511]
[1752490541567,0.70263586,121860.0,121850.0,0.0014511]
[1752490543191,0.21803876,121860.0,121850.0,0.0014511]
[1752490543423,0.46033731,121860.0,121850.0,0.0014511]
[1752490543642,0.46033731,121860.0,121850.0,0.1295311]
[1752490548073,0.46033731,121860.0,121850.0,0.0014511]
[1752490548295,0.70263586,121860.0,121850.0,0.1295311]
[1752490548532,0.70263586,121860.0,121850.0,0.0014511]
[1752490549229,0.70263586,121860.0,121850.0,0.1295311]
[1752490551462,0.70263586,121860.0,121850.0,0.0014511]
[1752490553241,0.21803876,121860.0,121850.0,0.0014511]
[1752490553450,0.70263586,121860.0,121850.0,0.0014511]
[1752490558817,0.70100154,121860.0,121850.0,0.0014511]
[1752490562344,0.2226918,121850.0,121840.0,0.13]
[1752490562646,0.47031035,121850.0,121840.0,0.13015353]
[1752490563696,0.47031035,121850.0,121840.0,0.13415353]
[1752490566078,0.42851035,121850.0,121840.0,0.13415353]
[1752490566566,0.43741598,121850.0,121840.0,0.13415353]
[1752490566790,0.48031598,121850.0,121840.0,0.13415353]
[1752490569597,0.23801743,121850.0,121840.0,0.13415353]
[1752490569863,0.48031598,121850.0,121840.0,0.13624353]
[1752490570086,0.43741598,121850.0,121840.0,0.13624353]
[1752490571388,0.19511743,121850.0,121840.0,0.13624353]
[1752490571670,0.43741598,121850.0,121840.0,0.13624353]
[1752490573923,0.19511743,121850.0,121840.0,0.13624353]
[1752490574220,0.1890984,121850.0,121840.0,0.6661925]
[1752490574460,0.1808918,121850.0,121840.0,0.42362208]
[1752490575372,0.1808918,121850.0,121840.0,0.42184208]
[1752490576311,0.18909861,121850.0,121840.0,0.50496919]
[1752490577498,0.18909861,121850.0,121840.0,0.37704919]
[1752490577732,0.18909861,121850.0,121840.0,0.50496919]
[1752490578421,0.18909861,121850.0,121840.0,0.50492919]
[1752490581916,0.18909861,121850.0,121840.0,0.50314919]
[1752490583397,0.18909861,121850.0,121840.0,0.26085064]
[1752490583583,0.18909861,121850.0,121840.0,0.48184919]
[1752490585346,0.18909861,121850.0,121840.0,0.45984919]
[1752490590821,0.18909861,121850.0,121840.0,0.21755064]
[1752490591069,0.18909861,121850.0,121840.0,0.45984919]
[1752490592172,0.53636818,121850.0,121840.0,0.08750064]
[1752490592442,0.22899194,121850.0,121840.0,0.13395353]
[1752490592664,0.47129049,121850.0,121840.0,0.13907855]
[1752490592884,0.22899194,121850.0,121840.0,0.13907855]
[1752490594251,0.21915191,121850.0,121840.0,0.13907855]
[1752490594779,0.21915191,121850.0,121840.0,0.3813771]
[1752490595162,0.21915191,121850.0,121840.0,0.38137701]
[1752490595817,0.21915191,121850.0,121840.0,0.13907847]
[1752490596028,0.46145046,121850.0,121840.0,0.13907847]
[1752490596237,0.46145046,121850.0,121840.0,0.13395353]
[1752490596460,0.21915191,121850.0,121840.0,0.13395353]
[1752490596680,0.46145046,121850.0,121840.0,0.13395353]
[1752490597161,0.46145046,121850.0,121840.0,0.13391353]
[1752490598834,0.45161061,121850.0,121840.0,0.13391353]
[1752490601762,0.20931206,121850.0,121840.0,0.00615353]
[1752490602179,0.20931206,121850.0,121840.0,0.13391353]
[1752490602391,0.20931206,121850.0,121840.0,0.1359654]
[1752490602595,0.20110525,121850.0,121840.0,0.1359654]
[1752490603907,0.4434038,121850.0,121840.0,0.1359654]
[1752490605840,0.20110525,121850.0,121840.0,0.1359654]
[1752490606074,0.20110525,121850.0,121840.0,0.13391353]
[1752490607272,0.22864931,121850.0,121840.0,0.13391353]
[1752490607692,0.22044297,121850.0,121840.0,0.37621208]
[1752490610461,0.22044297,121850.0,121840.0,0.13391353]
[1752490610717,0.22044297,121850.0,121840.0,0.37621208]
[1752490610929,0.22044297,121850.0,121840.0,0.24845208]
[1752490611142,0.22044297,121850.0,121840.0,0.37617208]
[1752490612072,0.22044297,121850.0,121840.0,0.13387353]
[1752490612300,0.22044297,121850.0,121840.0,0.37617208]
[1752490613491,0.22044297,121850.0,121840.0,0.13387353]
[1752490614352,0.22044297,121850.0,121840.0,0.00615353]
[1752490614576,0.22044297,121850.0,121840.0,0.13383353]
[1752490614802,0.22044297,121850.0,121840.0,0.37613208]
[1752490615444,0.22044297,121850.0,121840.0,0.13383353]
[1752490615641,0.22044297,121850.0,121840.0,0.37613208]
[1752490616047,0.22044297,121850.0,121840.0,0.13383353]
[1752490616396,0.22044297,121850.0,121840.0,0.37613208]
[1752490619434,0.22044297,121850.0,121840.0,0.13383353]
[1752490619638,0.46274152,121850.0,121840.0,0.00615353]
[1752490619855,0.22044297,121850.0,121840.0,0.13383353]
[1752490620490,0.22044297,121850.0,121840.0,0.00615353]
[1752490620700,0.22044297,121850.0,121840.0,0.13383353]
[1752490620906,0.46274152,121850.0,121840.0,0.13379353]
[1752490621540,0.22044297,121850.0,121840.0,0.13379353]
[1752490624294,0.46274152,121850.0,121840.0,0.13379353]
[1752490625745,0.22044297,121850.0,121840.0,0.13379353]
[1752490625988,0.46274152,121850.0,121840.0,0.13379353]
[1752490626201,0.46274152,121850.0,121840.0,0.00615353]
[1752490626415,0.22044297,121850.0,121840.0,0.00615353]
[1752490626651,0.22044297,121850.0,121840.0,0.13379353]
[1752490629156,0.22044297,121850.0,121840.0,0.13375353]
[1752490631808,0.22044297,121850.0,121840.0,0.37605208]
[1752490632915,0.22044297,121850.0,121840.0,0.13375353]
[1752490633371,0.22044297,121850.0,121840.0,0.37605208]
[1752490633586,0.46274152,121850.0,121840.0,0.13375353]
[1752490634036,0.22044297,121850.0,121840.0,0.13375353]
[1752490634500,0.46274152,121850.0,121840.0,0.00615353]
[1752490634716,0.46274152,121850.0,121840.0,0.13375353]
[1752490635148,0.22044297,121850.0,121840.0,0.13375353]
[1752490635371,0.46274152,121850.0,121840.0,0.13375353]
[1752490636686,0.22044297,121850.0,121840.0,0.37601208]
[1752490637074,0.22044297,121850.0,121840.0,0.13371353]
[1752490637283,0.22044297,121850.0,121840.0,0.00615353]
[1752490637481,0.22044297,121850.0,121840.0,0.13371353]
[1752490639935,0.22044297,121850.0,121840.0,0.37601208]
[1752490640176,0.22044297,121850.0,121840.0,0.13371353]
[1752490644573,0.22044297,121850.0,121840.0,0.00615353]
[1752490644784,0.22044297,121850.0,121840.0,0.13367353]
[1752490648864,0.17234297,121850.0,121840.0,0.37971208]
[1752490649077,0.00820566,121860.0,121850.0,0.35454085]
[1752490649298,0.01641126,121860.0,121850.0,0.42330711]
[1752490649530,0.04170072,121870.0,121850.0,0.79312566]
[1752490649742,0.04990565,121870.0,121860.0,0.24229855]
[1752490649956,0.04170032,121870.0,121860.0,0.24425855]
[1752490650169,0.214015,121870.0,121860.0,0.24425855]
[1752490650386,0.04990571,121870.0,121860.0,0.24425855]
[1752490650824,0.214015,121870.0,121860.0,0.24425855]
[1752490651045,0.235515,121870.0,121860.0,0.24425855]
[1752490651262,0.237605,121870.0,121860.0,0.00196]
[1752490651486,0.22939994,121870.0,121860.0,0.24425855]
[1752490652631,0.22939994,121870.0,121860.0,0.24525855]